[Event "VI Sunway Sitges Open 2019"]
[Site "Sitges"]
[Date "2019.12.16"]
[Round "4.43"]
[White "Divya Deshmukh"]
[Black "Sadzikowski, Daniel"]
[Result "1/2-1/2"]
[ECO "C03"]
[WhiteElo "2332"]
[BlackElo "2504"]
[Annotator "ChessBase"]
[PlyCount "83"]
[EventDate "2019.12.13"]
[EventType "swiss"]
[EventCountry "ESP"]
[SourceTitle "playchess.com"]
[Source "ChessBase"]
[SourceQuality "1"]
[TimeControl "40/5400+30:1800+30"]

1. e4 {[%emt 0:00:00]} e6 {[%emt 0:00:00]} 2. d4 {[%emt 0:00:00]} d5 {[%emt 0:00:00]} 3. Nd2 {[%emt 0:00:00]} Be7 {[%emt 0:00:00]} 4. Bd3 {[%emt 0:00:06]} c5 {[%emt 0:00:19]} 5. dxc5 {[%emt 0:00:55]} Nf6 {[%emt 0:00:21]} 6. Ngf3 {[%emt 0:03:59]} dxe4 {[%emt 0:01:54]} 7. Bxe4 {[%emt 0:02:27]} Na6 {[%emt 0:04:34]} 8. c6 {[%emt 0:03:33]} Nxe4 {[%emt 0:02:25]} 9. Nxe4 {[%emt 0:00:05]} Qxd1+ {[%emt 0:00:43]} 10. Kxd1 {[%emt 0:00:01]} O-O {[%emt 0:08:31]} 11. Be3 {[%emt 0:08:53]} Nb4 {[%emt 0:27:13]} 12. c7 {[%emt 0:26:54]} Nd5 {[%emt 0:09:51]} 13. Ke2 {[%emt 0:08:45]} b6 {[%emt 0:01:56]} 14. Rhd1 {[%emt 0:01:27]} Ba6+ {[%emt 0:01:44]} 15. Ke1 {[%emt 0:00:43]} Rfc8 {[%emt 0:04:10]} 16. Nd4 {[%emt 0:13:07]} Nxe3 {[%emt 0:04:09]} 17. fxe3 {[%emt 0:00:09]} Rxc7 {[%emt 0:00:06]} 18. Rd2 {[%emt 0:05:55]} Rac8 {[%emt 0:02:10]} 19. g3 {[%emt 0:03:04]} g6 {[%emt 0:02:22]} 20. c3 {[%emt 0:02:52]} Bb7 {[%emt 0:07:57]} 21. Nf2 {[%emt 0:00:15]} a6 {[%emt 0:00:25]} 22. Ke2 {[%emt 0:00:51]} Rd8 {[%emt 0:06:34]} 23. Rad1 {[%emt 0:01:43]} Rcd7 {[%emt 0:01:13]} 24. Ng4 {[%emt 0:00:56]} Rd5 {[%emt 0:03:46]} 25. e4 {[%emt 0:03:28]} Rg5 {[%emt 0:01:05]} 26. Nf2 {[%emt 0:01:53]} Re8 {[%emt 0:02:20]} 27. Nf3 {[%emt 0:01:40]} Rb5 {[%emt 0:00:27]} 28. b4 {[%emt 0:01:27]} Rh5 {[%emt 0:03:17]} 29. g4 {[%emt 0:06:04]} Rh6 {[%emt 0:00:01]} 30. Rd7 {[%emt 0:01:00]} Bc6 {[%emt 0:00:11]} 31. Rc7 {[%emt 0:00:05]} Ba4 {[%emt 0:01:27]} 32. Rd2 {[%emt 0:00:04]} g5 {[%emt 0:01:00]} 33. e5 {[%emt 0:00:50]} f5 {[%emt 0:00:51]} 34. exf6 {[%emt 0:02:51]} Rxf6 {[%emt 0:00:31]} 35. Ne4 {[%emt 0:00:47]} Rf4 {[%emt 0:00:01]} 36. Ke3 {[%emt 0:00:37]} Rxg4 {[%emt 0:02:31]} 37. h3 {[%emt 0:00:31]} Rf4 {[%emt 0:00:04]} 38. Nfxg5 {[%emt 0:00:29]} Rf5 {[%emt 0:00:52]} 39. Rg2 {[%emt 0:00:30]} Kh8 {[%emt 0:00:28]} 40. Nxe6 {[%emt 0:00:29]} Re5 {[%emt 0:01:06]} 41. Ng7 {[%emt 0:05:29]} Rg8 {[%emt 0:17:46]} 42. Kd4 {[%emt 0:19:51]} 1/2-1/2

[Event "VI Sunway Sitges Open 2019"]
[Site "Sitges"]
[Date "2019.12.16"]
[Round "4.44"]
[White "Davtyan, David Arm."]
[Black "Barseghyan, Harutyun"]
[Result "0-1"]
[ECO "E49"]
[WhiteElo "2327"]
[BlackElo "2498"]
[Annotator "ChessBase"]
[PlyCount "198"]
[EventDate "2019.12.13"]
[EventType "swiss"]
[EventCountry "ESP"]
[SourceTitle "playchess.com"]
[Source "ChessBase"]
[SourceQuality "1"]
[TimeControl "40/5400+30:1800+30"]

1. c4 {[%emt 0:00:11]} Nf6 {[%emt 0:01:46]} 2. Nc3 {[%emt 0:00:13]} e6 {[%emt 0:00:13]} 3. d4 {[%emt 0:00:16]} Bb4 {[%emt 0:02:24]} 4. e3 {[%emt 0:00:57]} b6 {[%emt 0:03:18]} 5. Bd3 {[%emt 0:05:34]} Bb7 {[%emt 0:00:18]} 6. f3 {[%emt 0:00:39]} c5 {[%emt 0:02:57]} 7. a3 {[%emt 0:00:17]} Bxc3+ {[%emt 0:01:09]} 8. bxc3 {[%emt 0:02:04]} d5 {[%emt 0:03:37]} 9. cxd5 {[%emt 0:00:11]} exd5 {[%emt 0:00:03]} 10. Ne2 {[%emt 0:00:06]} O-O {[%emt 0:01:03]} 11. O-O {[%emt 0:01:12]} Re8 {[%emt 0:00:21]} 12. Ng3 {[%emt 0:08:08]} Nc6 {[%emt 0:01:35]} 13. Ra2 {[%emt 0:04:54]} Rc8 {[%emt 0:19:53]} 14. Raf2 {[%emt 0:04:20]} Rc7 {[%emt 0:12:50]} 15. Re1 {[%emt 0:09:06]} cxd4 {[%emt 0:08:11]} 16. cxd4 {[%emt 0:00:27]} Na5 {[%emt 0:01:22]} 17. e4 {[%emt 0:06:06]} dxe4 {[%emt 0:04:23]} 18. fxe4 {[%emt 0:00:06]} Rxc1 {[%emt 0:02:12]} 19. Qxc1 {[%emt 0:00:06]} Ng4 {[%emt 0:02:13]} 20. Qf4 {[%emt 0:06:04]} Nxf2 {[%emt 0:00:07]} 21. Qxf2 {[%emt 0:00:03]} Rf8 {[%emt 0:05:12]} 22. d5 {[%emt 0:06:46]} Qd6 {[%emt 0:04:43]} 23. Nf5 {[%emt 0:05:52]} Qe5 {[%emt 0:00:02]} 24. Nd4 {[%emt 0:01:44]} Rc8 {[%emt 0:02:55]} 25. Rf1 {[%emt 0:07:53]} f6 {[%emt 0:00:40]} 26. Nf3 {[%emt 0:02:54]} Qc3 {[%emt 0:01:12]} 27. Qe2 {[%emt 0:04:24]} Nb3 {[%emt 0:01:50]} 28. e5 {[%emt 0:06:29]} Nc1 {[%emt 0:05:37]} 29. Bxh7+ {[%emt 0:00:45]} Kxh7 {[%emt 0:00:27]} 30. Qe4+ {[%emt 0:00:00]} Kg8 {[%emt 0:00:17]} 31. exf6 {[%emt 0:00:21]} Qxf6 {[%emt 0:01:22]} 32. Ne5 {[%emt 0:00:39]} Qe7 {[%emt 0:05:47]} 33. Kh1 {[%emt 0:12:18]} Nd3 {[%emt 0:00:45]} 34. Qxd3 {[%emt 0:01:59]} Qxe5 {[%emt 0:00:02]} 35. d6 {[%emt 0:00:17]} Qe4 {[%emt 0:02:13]} 36. Qg3 {[%emt 0:00:33]} Rc2 {[%emt 0:02:43]} 37. d7 {[%emt 0:00:01]} Qxg2+ {[%emt 0:00:26]} 38. Qxg2 {[%emt 0:00:05]} Bxg2+ {[%emt 0:00:03]} 39. Kg1 {[%emt 0:00:02]} Rd2 {[%emt 0:00:11]} 40. Rf2 {[%emt 0:00:00]} Rxd7 {[%emt 0:00:00]} 41. Kxg2 {[%emt 0:01:33]} Rd3 {[%emt 0:02:28]} 42. a4 {[%emt 0:00:57]} Rd4 {[%emt 0:01:35]} 43. a5 {[%emt 0:00:14]} b5 {[%emt 0:03:59]} 44. a6 {[%emt 0:01:04]} b4 {[%emt 0:02:17]} 45. Rb2 {[%emt 0:04:14]} Kh7 {[%emt 0:05:04]} 46. Rb3 {[%emt 0:02:13]} Kh6 {[%emt 0:02:08]} 47. Rh3+ {[%emt 0:01:21]} Kg5 {[%emt 0:04:50]} 48. Re3 {[%emt 0:00:33]} Kf6 {[%emt 0:00:10]} 49. Rf3+ {[%emt 0:00:27]} Kg6 {[%emt 0:03:33]} 50. Rg3+ {[%emt 0:04:07]} Kf5 {[%emt 0:00:37]} 51. Rf3+ {[%emt 0:00:55]} Ke6 {[%emt 0:01:49]} 52. Rg3 {[%emt 0:01:05]} Kf7 {[%emt 0:00:18]} 53. Rf3+ {[%emt 0:01:49]} Kg8 {[%emt 0:00:24]} 54. Re3 {[%emt 0:00:44]} Rd2+ {[%emt 0:04:17]} 55. Kg1 {[%emt 0:01:09]} Kf7 {[%emt 0:02:02]} 56. Rf3+ {[%emt 0:00:15]} Ke6 {[%emt 0:00:15]} 57. Rb3 {[%emt 0:02:05]} Rd4 {[%emt 0:01:08]} 58. Rg3 {[%emt 0:00:38]} Kf5 {[%emt 0:01:17]} 59. Rf3+ {[%emt 0:02:31]} Kg6 {[%emt 0:01:39]} 60. Rg3+ {[%emt 0:00:34]} Kh7 {[%emt 0:00:01]} 61. Rh3+ {[%emt 0:00:18]} Kg8 {[%emt 0:00:04]} 62. Re3 {[%emt 0:00:15]} Kf7 {[%emt 0:00:40]} 63. Rf3+ {[%emt 0:00:05]} Kg8 {[%emt 0:00:39]} 64. Re3 {[%emt 0:00:06]} Rd6 {[%emt 0:00:17]} 65. Re8+ {[%emt 0:00:10]} Kh7 {[%emt 0:00:06]} 66. Rb8 {[%emt 0:00:04]} Rxa6 {[%emt 0:00:04]} 67. Rxb4 {[%emt 0:00:03]} Ra2 {[%emt 0:00:14]} 68. Rg4 {[%emt 0:02:02]} Kh6 {[%emt 0:00:30]} 69. Rc4 {[%emt 0:01:57]} Kh5 {[%emt 0:00:20]} 70. Rc6 {[%emt 0:00:51]} g5 {[%emt 0:00:11]} 71. Rc4 {[%emt 0:00:43]} a5 {[%emt 0:00:09]} 72. Rd4 {[%emt 0:00:09]} a4 {[%emt 0:00:13]} 73. Rb4 {[%emt 0:00:07]} a3 {[%emt 0:00:31]} 74. Ra4 {[%emt 0:00:04]} g4 {[%emt 0:00:52]} 75. Ra5+ {[%emt 0:01:18]} Kg6 {[%emt 0:00:43]} 76. Ra8 {[%emt 0:02:13]} Kf5 {[%emt 0:00:13]} 77. Rf8+ {[%emt 0:01:01]} Ke4 {[%emt 0:00:03]} 78. Re8+ {[%emt 0:00:04]} Kf3 {[%emt 0:00:18]} 79. Rf8+ {[%emt 0:00:05]} Ke3 {[%emt 0:00:05]} 80. Re8+ {[%emt 0:00:03]} Kf3 {[%emt 0:00:04]} 81. Rf8+ {[%emt 0:00:16]} Ke3 {[%emt 0:00:03]} 82. Re8+ {[%emt 0:00:04]} Kd3 {[%emt 0:00:04]} 83. Rd8+ {[%emt 0:00:03]} Kc3 {[%emt 0:00:05]} 84. Rc8+ {[%emt 0:00:04]} Kd3 {[%emt 0:00:03]} 85. Rd8+ {[%emt 0:00:05]} Kc3 {[%emt 0:00:04]} 86. Rc8+ {[%emt 0:00:03]} Kb2 {[%emt 0:01:41]} 87. Rb8+ {[%emt 0:00:05]} Kc2 {[%emt 0:02:13]} 88. Rc8+ {[%emt 0:01:31]} Kb1 {[%emt 0:00:10]} 89. Ra8 {[%emt 0:02:06]} Ra1 {[%emt 0:00:06]} 90. Kf2 {[%emt 0:01:51]} Kb2 {[%emt 0:00:20]} 91. Rb8+ {[%emt 0:01:39]} Kc3 {[%emt 0:00:29]} 92. Ra8 {[%emt 0:00:41]} Kb3 {[%emt 0:00:10]} 93. Rb8+ {[%emt 0:00:09]} Ka2 {[%emt 0:00:11]} 94. Rb4 {[%emt 0:03:34]} Rb1 {[%emt 0:01:05]} 95. Rxg4 {[%emt 0:00:04]} Kb3 {[%emt 0:00:03]} 96. Rg8 {[%emt 0:01:43]} a2 {[%emt 0:00:04]} 97. Rb8+ {[%emt 0:00:05]} Kc3 {[%emt 0:00:25]} 98. Rc8+ {[%emt 0:00:09]} Kd3 {[%emt 0:00:14]} 99. Rd8+ {[%emt 0:00:05]} Ke4 {[%emt 0:00:09]} 0-1

[Event "VI Sunway Sitges Open 2019"]
[Site "Sitges"]
[Date "2019.12.16"]
[Round "4.45"]
[White "Iniyan, P."]
[Black "Risting, Eivind Olav"]
[Result "1/2-1/2"]
[ECO "D27"]
[WhiteElo "2497"]
[BlackElo "2307"]
[Annotator "ChessBase"]
[PlyCount "85"]
[EventDate "2019.12.13"]
[EventType "swiss"]
[EventCountry "ESP"]
[SourceTitle "playchess.com"]
[Source "ChessBase"]
[SourceQuality "1"]
[TimeControl "40/5400+30:1800+30"]

1. d4 {[%emt 0:00:00]} d5 {[%emt 0:00:00]} 2. c4 {[%emt 0:00:00]} e6 {[%emt 0:00:01]} 3. Nf3 {[%emt 0:00:00]} a6 {[%emt 0:00:32]} 4. Nc3 {[%emt 0:01:34]} dxc4 {[%emt 0:01:49]} 5. a4 {[%emt 0:06:10]} Nf6 {[%emt 0:06:07]} 6. e3 {[%emt 0:00:00]} c5 {[%emt 0:01:08]} 7. Bxc4 {[%emt 0:00:00]} Nc6 {[%emt 0:00:53]} 8. O-O {[%emt 0:00:00]} Be7 {[%emt 0:00:58]} 9. Qd3 {[%emt 0:06:53]} O-O {[%emt 0:01:44]} 10. Rd1 {[%emt 0:00:08]} Qc7 {[%emt 0:03:51]} 11. Qe2 {[%emt 0:02:31]} b6 {[%emt 0:11:49]} 12. d5 {[%emt 0:05:44]} exd5 {[%emt 0:00:39]} 13. Nxd5 {[%emt 0:01:05]} Nxd5 {[%emt 0:00:40]} 14. Bxd5 {[%emt 0:00:09]} Bf6 {[%emt 0:11:08]} 15. Nd2 {[%emt 0:06:07]} Bb7 {[%emt 0:08:07]} 16. Ne4 {[%emt 0:00:02]} Be7 {[%emt 0:02:40]} 17. Bd2 {[%emt 0:23:00]} Nd4 {[%emt 0:07:24]} 18. exd4 {[%emt 0:00:09]} Bxd5 {[%emt 0:00:07]} 19. dxc5 {[%emt 0:00:43]} Qe5 {[%emt 0:14:33]} 20. Re1 {[%emt 0:00:01]} Bxc5 {[%emt 0:09:27]} 21. Bc3 {[%emt 0:05:29]} Qxe4 {[%emt 0:01:54]} 22. Qxe4 {[%emt 0:00:46]} Bxe4 {[%emt 0:00:03]} 23. Rxe4 {[%emt 0:00:09]} Rfe8 {[%emt 0:00:53]} 24. Rae1 {[%emt 0:00:25]} Rxe4 {[%emt 0:00:39]} 25. Rxe4 {[%emt 0:00:08]} f6 {[%emt 0:03:20]} 26. Kf1 {[%emt 0:06:10]} Kf7 {[%emt 0:00:12]} 27. Rc4 {[%emt 0:04:22]} Rb8 {[%emt 0:04:47]} 28. b4 {[%emt 0:03:31]} Bd6 {[%emt 0:01:00]} 29. Rc6 {[%emt 0:00:21]} Ke7 {[%emt 0:01:52]} 30. b5 {[%emt 0:01:23]} axb5 {[%emt 0:00:19]} 31. axb5 {[%emt 0:00:10]} Bc5 {[%emt 0:01:06]} 32. Bd2 {[%emt 0:02:19]} Kd7 {[%emt 0:03:34]} 33. Be3 {[%emt 0:01:42]} Bxe3 {[%emt 0:00:49]} 34. fxe3 {[%emt 0:00:08]} Re8 {[%emt 0:01:21]} 35. Rxb6 {[%emt 0:00:07]} Kc7 {[%emt 0:00:08]} 36. Rc6+ {[%emt 0:08:52]} Kb7 {[%emt 0:00:10]} 37. Rd6 {[%emt 0:00:04]} Kc7 {[%emt 0:00:09]} 38. Rd3 {[%emt 0:00:04]} Re5 {[%emt 0:00:14]} 39. b6+ {[%emt 0:00:06]} Kxb6 {[%emt 0:00:13]} 40. Rd7 {[%emt 0:00:00]} Rg5 {[%emt 0:00:00]} 41. h4 {[%emt 0:00:09]} Rg4 {[%emt 0:03:15]} 42. Rd4 {[%emt 0:01:14]} Rxd4 {[%emt 0:02:10]} 43. exd4 {[%emt 0:00:08]} 1/2-1/2

[Event "VI Sunway Sitges Open 2019"]
[Site "Sitges"]
[Date "2019.12.16"]
[Round "4.46"]
[White "Zanan, Evgeny"]
[Black "Unuk, Laura"]
[Result "1/2-1/2"]
[ECO "C78"]
[WhiteElo "2493"]
[BlackElo "2305"]
[Annotator "ChessBase"]
[PlyCount "138"]
[EventDate "2019.12.13"]
[EventType "swiss"]
[EventCountry "ESP"]
[SourceTitle "playchess.com"]
[Source "ChessBase"]
[SourceQuality "1"]
[TimeControl "40/5400+30:1800+30"]

1. e4 {[%emt 0:07:57]} e5 {[%emt 0:00:14]} 2. Nf3 {[%emt 0:00:05]} Nc6 {[%emt 0:00:05]} 3. Bb5 {[%emt 0:00:04]} a6 {[%emt 0:00:11]} 4. Ba4 {[%emt 0:00:05]} Nf6 {[%emt 0:00:20]} 5. O-O {[%emt 0:00:06]} b5 {[%emt 0:01:45]} 6. Bb3 {[%emt 0:02:58]} Bc5 {[%emt 0:00:07]} 7. a4 {[%emt 0:00:04]} Rb8 {[%emt 0:00:23]} 8. c3 {[%emt 0:00:12]} d6 {[%emt 0:00:12]} 9. d4 {[%emt 0:00:04]} Bb6 {[%emt 0:00:11]} 10. a5 {[%emt 0:00:05]} Ba7 {[%emt 0:00:34]} 11. h3 {[%emt 0:00:07]} h6 {[%emt 0:05:38]} 12. Be3 {[%emt 0:06:08]} Ra8 {[%emt 0:01:30]} 13. Re1 {[%emt 0:18:01]} O-O {[%emt 0:01:14]} 14. Qc1 {[%emt 0:02:37]} Bb7 {[%emt 0:08:08]} 15. d5 {[%emt 0:04:22]} Bxe3 {[%emt 0:00:57]} 16. Qxe3 {[%emt 0:00:20]} Ne7 {[%emt 0:00:29]} 17. Ba2 {[%emt 0:06:02]} g5 {[%emt 0:12:36]} 18. Nbd2 {[%emt 0:01:28]} Ng6 {[%emt 0:00:57]} 19. Nh2 {[%emt 0:03:27]} Kg7 {[%emt 0:00:59]} 20. b4 {[%emt 0:04:18]} Nh5 {[%emt 0:04:52]} 21. Bb1 {[%emt 0:02:22]} Nhf4 {[%emt 0:01:28]} 22. Bd3 {[%emt 0:08:41]} Bc8 {[%emt 0:12:44]} 23. Bf1 {[%emt 0:03:16]} h5 {[%emt 0:04:51]} 24. f3 {[%emt 0:02:45]} f5 {[%emt 0:03:39]} 25. Rac1 {[%emt 0:07:11]} g4 {[%emt 0:07:23]} 26. exf5 {[%emt 0:05:58]} Bxf5 {[%emt 0:02:05]} 27. fxg4 {[%emt 0:02:11]} hxg4 {[%emt 0:02:44]} 28. hxg4 {[%emt 0:01:14]} Nxd5 {[%emt 0:00:59]} 29. Qg3 {[%emt 0:00:06]} Be6 {[%emt 0:02:12]} 30. Ne4 {[%emt 0:03:01]} Qe7 {[%emt 0:06:31]} 31. Nf3 {[%emt 0:03:23]} Rf4 {[%emt 0:02:08]} 32. Nf2 {[%emt 0:00:03]} Raf8 {[%emt 0:07:56]} 33. Bd3 {[%emt 0:00:25]} Nf6 {[%emt 0:02:09]} 34. Nh2 {[%emt 0:02:12]} Nh7 {[%emt 0:01:33]} 35. Bxg6 {[%emt 0:02:11]} Kxg6 {[%emt 0:00:07]} 36. Nd3 {[%emt 0:00:43]} R4f7 {[%emt 0:01:02]} 37. Nf3 {[%emt 0:01:09]} Rf6 {[%emt 0:04:38]} 38. Nh4+ {[%emt 0:02:15]} Kf7 {[%emt 0:02:10]} 39. g5 {[%emt 0:00:29]} Nxg5 {[%emt 0:00:43]} 40. Qxg5 {[%emt 0:00:00]} Ke8 {[%emt 0:00:00]} 41. Qh5+ {[%emt 0:22:38]} Kd8 {[%emt 0:02:17]} 42. Rcd1 {[%emt 0:06:23]} Qg7 {[%emt 0:01:22]} 43. Qe2 {[%emt 0:03:16]} Bg4 {[%emt 0:14:53]} 44. Qe4 {[%emt 0:00:01]} Bxd1 {[%emt 0:00:06]} 45. Rxd1 {[%emt 0:00:03]} Qg3 {[%emt 0:00:28]} 46. Nxe5 {[%emt 0:01:01]} Re8 {[%emt 0:08:22]} 47. Qa8+ {[%emt 0:00:10]} Ke7 {[%emt 0:00:03]} 48. Nhg6+ {[%emt 0:00:20]} Rxg6 {[%emt 0:00:11]} 49. Nxg6+ {[%emt 0:00:04]} Qxg6 {[%emt 0:01:50]} 50. Re1+ {[%emt 0:00:04]} Kd7 {[%emt 0:00:25]} 51. Qxe8+ {[%emt 0:00:05]} Qxe8 {[%emt 0:00:03]} 52. Rxe8 {[%emt 0:00:04]} Kxe8 {[%emt 0:00:05]} 53. Kf2 {[%emt 0:00:05]} c6 {[%emt 0:03:50]} 54. Ke3 {[%emt 0:00:09]} Ke7 {[%emt 0:00:04]} 55. g4 {[%emt 0:00:58]} Ke6 {[%emt 0:00:57]} 56. Kf4 {[%emt 0:02:53]} Kf6 {[%emt 0:01:14]} 57. g5+ {[%emt 0:00:05]} Kg6 {[%emt 0:02:31]} 58. Kg4 {[%emt 0:00:04]} c5 {[%emt 0:00:07]} 59. Kf4 {[%emt 0:00:04]} c4 {[%emt 0:00:51]} 60. Kg4 {[%emt 0:01:57]} d5 {[%emt 0:00:15]} 61. Kf4 {[%emt 0:00:04]} d4 {[%emt 0:00:13]} 62. cxd4 {[%emt 0:00:16]} c3 {[%emt 0:00:03]} 63. Ke3 {[%emt 0:00:03]} Kxg5 {[%emt 0:00:04]} 64. Kd3 {[%emt 0:00:57]} Kf5 {[%emt 0:00:14]} 65. Kc2 {[%emt 0:01:17]} Kf4 {[%emt 0:00:46]} 66. Kb3 {[%emt 0:01:17]} Kf5 {[%emt 0:00:28]} 67. Kxc3 {[%emt 0:00:27]} Ke4 {[%emt 0:00:05]} 68. d5 {[%emt 0:00:04]} Kxd5 {[%emt 0:00:05]} 69. Kd3 {[%emt 0:00:02]} Ke5 {[%emt 0:00:15] Ke4+} 1/2-1/2

[Event "VI Sunway Sitges Open 2019"]
[Site "Sitges"]
[Date "2019.12.16"]
[Round "4.47"]
[White "Zadruzny, Nicolaj"]
[Black "Garriga Cazorla, Pere"]
[Result "1/2-1/2"]
[ECO "B51"]
[WhiteElo "2308"]
[BlackElo "2484"]
[Annotator "ChessBase"]
[PlyCount "82"]
[EventDate "2019.12.13"]
[EventType "swiss"]
[EventCountry "ESP"]
[SourceTitle "playchess.com"]
[Source "ChessBase"]
[SourceQuality "1"]
[TimeControl "40/5400+30:1800+30"]

1. e4 {[%emt 0:00:00]} c5 {[%emt 0:00:00]} 2. Nf3 {[%emt 0:00:00]} d6 {[%emt 0:00:01]} 3. Bb5+ {[%emt 0:00:27]} Nd7 {[%emt 0:00:35]} 4. c3 {[%emt 0:00:13]} Ngf6 {[%emt 0:00:36]} 5. Qe2 {[%emt 0:00:14]} a6 {[%emt 0:00:07]} 6. Ba4 {[%emt 0:00:06]} b5 {[%emt 0:00:05]} 7. Bc2 {[%emt 0:00:05]} e6 {[%emt 0:00:50]} 8. O-O {[%emt 0:01:04]} Be7 {[%emt 0:01:33]} 9. d4 {[%emt 0:00:08]} Bb7 {[%emt 0:00:08]} 10. Re1 {[%emt 0:00:09]} Qc7 {[%emt 0:00:25]} 11. a4 {[%emt 0:00:18]} O-O {[%emt 0:05:13]} 12. axb5 {[%emt 0:00:09]} axb5 {[%emt 0:00:06]} 13. Rxa8 {[%emt 0:00:06]} Rxa8 {[%emt 0:03:43]} 14. Na3 {[%emt 0:00:08]} b4 {[%emt 0:11:24]} 15. Nb5 {[%emt 0:00:07]} Qb6 {[%emt 0:00:38]} 16. e5 {[%emt 0:00:18]} Ne8 {[%emt 0:15:11]} 17. dxc5 {[%emt 0:06:26]} Qxc5 {[%emt 0:12:34]} 18. Be3 {[%emt 0:00:12]} Qc6 {[%emt 0:00:05]} 19. exd6 {[%emt 0:03:57]} Nxd6 {[%emt 0:01:52]} 20. Nbd4 {[%emt 0:00:10]} Qc4 {[%emt 0:05:18]} 21. cxb4 {[%emt 0:08:15]} Qxb4 {[%emt 0:06:31]} 22. Bd2 {[%emt 0:04:44]} Qc4 {[%emt 0:01:22]} 23. Qe3 {[%emt 0:15:30]} Nc5 {[%emt 0:06:31]} 24. Ne5 {[%emt 0:02:22]} Qd5 {[%emt 0:01:00]} 25. f3 {[%emt 0:04:58]} Bf6 {[%emt 0:01:48]} 26. Bc3 {[%emt 0:03:09]} Nc4 {[%emt 0:01:37]} 27. Nxc4 {[%emt 0:00:17]} Qxc4 {[%emt 0:00:05]} 28. Ne2 {[%emt 0:01:57]} Bxc3 {[%emt 0:01:08]} 29. Qxc3 {[%emt 0:00:41]} Qxc3 {[%emt 0:02:18]} 30. Nxc3 {[%emt 0:01:25]} Kf8 {[%emt 0:01:01]} 31. Kf2 {[%emt 0:04:28]} Ke7 {[%emt 0:01:56]} 32. f4 {[%emt 0:02:09]} g6 {[%emt 0:02:02]} 33. g4 {[%emt 0:04:20]} h6 {[%emt 0:02:33]} 34. h4 {[%emt 0:00:37]} Nd7 {[%emt 0:01:47]} 35. Be4 {[%emt 0:11:28]} Bxe4 {[%emt 0:00:22]} 36. Nxe4 {[%emt 0:00:07]} Rb8 {[%emt 0:02:27]} 37. Re2 {[%emt 0:01:10]} Nf6 {[%emt 0:01:55]} 38. Nxf6 {[%emt 0:00:35]} Kxf6 {[%emt 0:00:05]} 39. g5+ {[%emt 0:00:30]} hxg5 {[%emt 0:00:29]} 40. hxg5+ {[%emt 0:00:00]} Ke7 {[%emt 0:00:00]} 41. Ke3 {[%emt 0:02:48]} Rb4 {[%emt 0:01:29]} 1/2-1/2

[Event "VI Sunway Sitges Open 2019"]
[Site "Sitges"]
[Date "2019.12.16"]
[Round "4.48"]
[White "Larino Nieto, David"]
[Black "Gokhvat, Peter"]
[Result "1-0"]
[ECO "B25"]
[WhiteElo "2475"]
[BlackElo "2287"]
[Annotator "ChessBase"]
[PlyCount "65"]
[EventDate "2019.12.13"]
[EventType "swiss"]
[EventCountry "ESP"]
[SourceTitle "playchess.com"]
[Source "ChessBase"]
[SourceQuality "1"]
[TimeControl "40/5400+30:1800+30"]

1. e4 {[%emt 0:00:51]} c5 {[%emt 0:00:00]} 2. Nc3 {[%emt 0:00:08]} Nc6 {[%emt 0:00:00]} 3. g3 {[%emt 0:00:12]} g6 {[%emt 0:00:07]} 4. Bg2 {[%emt 0:00:03]} Bg7 {[%emt 0:00:07]} 5. d3 {[%emt 0:00:01]} e6 {[%emt 0:00:11]} 6. Be3 {[%emt 0:00:02]} d6 {[%emt 0:00:06]} 7. f4 {[%emt 0:00:03]} Nge7 {[%emt 0:00:34]} 8. Nf3 {[%emt 0:00:02]} Nd4 {[%emt 0:02:43]} 9. O-O {[%emt 0:00:09]} f5 {[%emt 0:02:20]} 10. h4 {[%emt 0:06:11]} e5 {[%emt 0:20:07]} 11. fxe5 {[%emt 0:01:22]} dxe5 {[%emt 0:00:10]} 12. h5 {[%emt 0:02:00]} f4 {[%emt 0:07:04]} 13. gxf4 {[%emt 0:01:30]} Bg4 {[%emt 0:00:28]} 14. Nxd4 {[%emt 0:03:37]} Bxd1 {[%emt 0:02:02]} 15. Ne6 {[%emt 0:00:16]} Bxc2 {[%emt 0:08:38]} 16. Nxg7+ {[%emt 0:00:15]} Kd7 {[%emt 0:00:23]} 17. Rac1 {[%emt 0:09:46]} gxh5 {[%emt 0:16:10]} 18. fxe5 {[%emt 0:04:34]} Rg8 {[%emt 0:06:49]} 19. Rf7 {[%emt 0:03:22]} Rxg7 {[%emt 0:03:08]} 20. Rxg7 {[%emt 0:00:22]} Qh8 {[%emt 0:01:36]} 21. Rxe7+ {[%emt 0:00:44]} Kxe7 {[%emt 0:00:11]} 22. Nd5+ {[%emt 0:00:04]} Kd7 {[%emt 0:02:51]} 23. Nf6+ {[%emt 0:00:15]} Ke6 {[%emt 0:02:44]} 24. Rxc2 {[%emt 0:00:46]} b6 {[%emt 0:00:45]} 25. d4 {[%emt 0:00:20]} Qg7 {[%emt 0:08:58]} 26. Kh2 {[%emt 0:00:11]} cxd4 {[%emt 0:08:42]} 27. Bxd4 {[%emt 0:00:29]} Qb7 {[%emt 0:00:26]} 28. Bh3+ {[%emt 0:00:04]} Kf7 {[%emt 0:01:04]} 29. e6+ {[%emt 0:00:06]} Kf8 {[%emt 0:00:25]} 30. Rg2 {[%emt 0:02:05]} Qc7+ {[%emt 0:00:04]} 31. e5 {[%emt 0:00:15]} Qc4 {[%emt 0:00:43]} 32. Rg8+ {[%emt 0:00:07]} Ke7 {[%emt 0:00:05]} 33. Rg7+ {[%emt 0:00:03]} 1-0